Cogmind - Beta 13 @@@ ROGUE MODE // 2024.04.23 @ 17:41:16 Player: Cwaftwer Result: Destroyed by G-47 Trooper with Particle Gun Performance ------------- Evolutions (1) 500 Regions Visited (5) 1000 Robots Destroyed (23) 115 Value Destroyed (683) 683 Prototype IDs (27) 540 Alien Tech Used (0) 0 Bonus (360) 360 TOTAL SCORE: 3198 Bonus ------- Follower Combat Kills 60 Aligned with FarCom 300 Cogmind --------- Core Integrity 0/400 Matter 224/300 Energy 280/280 System Corruption 4% Temperature Cool (9) Movement Treading (245) Ox1 Location -8/Mines Parts ------- > --- POWER (1) -------- Heavy Ion Engine > --- PROPULSION (2) --- Light Treads Armored Treads > --- UTILITY (4) ------ Cooling System Large Storage Unit Improved Targeting Computer Medium Armor Plating > --- WEAPON (2) ------- Spread Laser Longsword +1 > --- INVENTORY (15) --- Improved Ion Engine Improved Ion Engine Light Treads Wheel Wheel Flight Unit Flight Unit Improved Heat Sink Light Armor Plating Beam Rifle Heavy Assault Rifle Autogun Improved Light Cannon Hammer Flail Peak State ------------ > --- POWER ------------ Heavy Ion Engine > --- PROPULSION ------- Light Treads Armored Treads > --- UTILITY ---------- Cooling System Large Storage Unit Improved Targeting Computer Medium Armor Plating > --- WEAPON ----------- Spread Laser Longsword +1 > --- INVENTORY -------- Improved Ion Engine Improved Ion Engine Light Treads Wheel Wheel Flight Unit Flight Unit Improved Heat Sink Light Armor Plating Beam Rifle Heavy Assault Rifle Autogun Improved Light Cannon Hammer Flail [Rating: 26] Favorites ----------- Power Heavy Ion Engine Engine Heavy Ion Engine Propulsion Light Treads Treads Light Treads Wheel Wheel Utility Cooling System Device Cooling System Storage Large Storage Unit Processor Improved Targeting Computer Protection Medium Armor Plating Weapon Spread Laser Energy Gun Spread Laser Ballistic Gun Assault Rifle Impact Weapon Hammer Slashing Weapon Longsword +1 Build | -11 -10 -9 -9 -9 -8 ------- Run | Yrd Mat Mat Min Exi Min Slots Evolved 2 | . . 2 . . . Power . | . . . . . . Propulsion . | . . . . . . Utility 2 | . . 2 . . . Weapon . | . . . . . . Parts Attached 42 | 6 1 29 3 . 3 Power 9 | 1 1 7 . . . Engine 9 | 1 1 7 . . . Core . | . . . . . . Reactor . | . . . . . . Propulsion 11 | 2 . 7 . . 2 Treads 6 | . . 4 . . 2 Leg . | . . . . . . Wheel 5 | 2 . 3 . . . Hover . | . . . . . . Flight . | . . . . . . Utility 7 | 1 . 3 3 . . Device 2 | . . 2 . . . Storage 2 | 1 . 1 . . . Processor 2 | . . . 2 . . Hackware . | . . . . . . Protection 1 | . . . 1 . . Artifact . | . . . . . . Weapon 15 | 2 . 12 . . 1 Energy Gun 9 | . . 9 . . . Energy Cannon . | . . . . . . Ballistic Gun 4 | 2 . 2 . . . Ballistic Cannon . | . . . . . . Launcher . | . . . . . . Special Weapon . | . . . . . . Impact Weapon 1 | . . 1 . . . Slashing Weapon 1 | . . . . . 1 Piercing Weapon . | . . . . . . Special Melee Weapon . | . . . . . . Unidentified Prototypes . | . . . . . . Parts Lost 4 | . . 3 1 . . Power 1 | . . 1 . . . Propulsion 1 | . . 1 . . . Utility 1 | . . . 1 . . Weapon 1 | . . 1 . . . Highest Loss Streak 3 | . . 3 1 . . To Critical Strikes . | . . . . . . Average Slot Usage (%) 96 | . 85 79 98 100 100 Engine 11 | . 14 10 11 11 11 Treads 19 | . . 3 22 22 22 Wheel 2 | . 28 15 . . . Device 13 | . . 18 14 11 11 Storage 11 | . 14 11 11 11 11 Processor 8 | . . . 9 11 11 Protection 7 | . . . 7 11 11 Energy Gun 21 | . . 19 22 22 21 Naked Turns . | . . . . . . Heaviest Build 43 | 11 13 37 43 43 43 Greatest Support 40 | 26 26 40 40 40 40 Greatest Overweight (x) 3 | . . 3 1 1 1 Average Overweight (x) . | . . . . 1 1 Largest Inventory Capacity 15 | 8 8 15 15 15 15 Average Capacity 14 | 6 8 12 15 15 15 Most Carried 15 | 5 6 11 15 15 15 Average Carried 13 | 2 5 8 13 15 14 Final Capacity 15 | 8 8 15 15 15 15 Final Carried 15 | 5 6 11 15 15 15 Class Distribution -------------------- 96% | Mutant 3% | Scavenger-Mutant Dominant Class ---------------- Mutant | -10/Materials Mutant | -9/Materials Mutant | -9/Mines Mutant | -9/Exiles Mutant | -8/Mines Resources | -11 -10 -9 -9 -9 -8 ----------- Run | Yrd Mat Mat Min Exi Min Matter Collected 678 | 228 . 245 191 . 14 Remotely . | . . . . . . Salvage Created 688 | 24 . 292 272 . 100 Parts 48 | 4 . 18 19 . 7 Haulers Intercepted . | . . . . . . Recyclers Shooed . | . . . . . . Parts Field Recycled . | . . . . . . Retrieved Matter . | . . . . . . Parts Self-Destructed . | . . . . . . Prevented . | . . . . . . Kills | -11 -10 -9 -9 -9 -8 ------- Run | Yrd Mat Mat Min Exi Min Combat Hostiles Destroyed 22 | . . 11 9 . 2 Melee 2 | . . . . . 2 Guns 20 | . . 11 9 . . Classes Destroyed 5 | 1 . 4 . . . Tunneler 1 | 1 . . . . . Swarmer 7 | . . 4 3 . . Grunt 7 | . . 2 4 . 1 Brawler 2 | . . 1 . . 1 Sentry 6 | . . 4 2 . . Best Kill Streak 4 | 1 . 4 3 . 2 Combat Bots Only 4 | . . 4 3 . 2 Max Kills in Single Turn 2 | 1 . 1 2 . 1 Gunslinging 1 | . . . 1 . . Exploded . | . . . . . . Melee 1 | . . . . . 1 Uniques/NPCs Destroyed . | . . . . . . Combat | -11 -10 -9 -9 -9 -8 -------- Run | Yrd Mat Mat Min Exi Min Hostile Shots Fired 92 | . 1 42 42 . 7 Missed 24 | . . 13 8 . 3 Damage Taken 1323 | . 15 837 390 . 81 Core 421 | . 15 344 48 . 14 Absorbed by Shields . | . . . . . . Regen/Repaired (Parts) 56 | . . 56 . . . Core Remaining (%) 97 | 100 94 . . . . Volleys Fired 45 | 2 . 27 16 . . Largest 2 | 2 . 2 2 . . Hottest 130 | 40 . 130 121 . . Shots Fired 85 | 4 . 44 34 2 1 Gun 85 | 4 . 44 34 2 1 Cannon . | . . . . . . Launcher . | . . . . . . Special . | . . . . . . Kinetic 11 | 4 . 7 . . . Thermal 74 | . . 37 34 2 1 Explosive . | . . . . . . Electromagnetic . | . . . . . . Robot Hit Streak 15 | 2 . 15 13 . . Robot Miss Streak 10 | 1 . 10 5 . . Penetration Max . | . . . . . . Secondary Targets 1 | . . . 1 . . Max Gunslinging Chain 1 | . . . 1 . . Shots Hit Robots 67 | 2 . 35 25 . 5 Core Hits 73 | 2 . 41 28 . 2 Critical Kills . | . . . . . . Critical Parts Destroyed . | . . . . . . Critical Strikes 2 | . . . 1 . 1 Burn 1 | . . . 1 . . Sever 1 | . . . . . 1 Melee Attacks 10 | . . . . . 10 Impact . | . . . . . . Slashing 10 | . . . . . 10 Piercing . | . . . . . . Sneak Attacks . | . . . . . . Combat Hostiles . | . . . . . . Follow-up Attacks . | . . . . . . Damage Inflicted 1052 | 20 . 487 334 . 211 Guns 841 | 20 . 487 334 . . Cannons . | . . . . . . Explosions . | . . . . . . Melee 211 | . . . . . 211 Ramming . | . . . . . . Kinetic 111 | 20 . 91 . . . Thermal 730 | . . 396 334 . . Explosive . | . . . . . . Electromagnetic . | . . . . . . Impact . | . . . . . . Slashing 211 | . . . . . 211 Piercing . | . . . . . . Highest Corruption 4 | . . 4 4 4 4 Average Corruption 4 | . . 4 4 4 4 Corruption Purged . | . . . . . . Corruption Blocked . | . . . . . . Effects 82 | . . 7 38 21 16 Message Errors 20 | . . 1 8 6 5 Matter Fused 15 | . . 2 6 4 3 Heat Flow Errors 10 | . . 2 4 2 2 Energy Discharges 14 | . . 1 8 3 2 Data Loss (minor) 9 | . . . 4 3 2 Data Loss (major) 6 | . . 1 4 1 . Misfires 5 | . . . 2 2 1 Alerts 3 | . . . 2 . 1 Overload Shots . | . . . . . . Overflow Damage . | . . . . . . Projectiles . | . . . . . . Explosions . | . . . . . . Melee . | . . . . . . Knockbacks . | . . . . . . Impact . | . . . . . . Kinetic . | . . . . . . Secondary . | . . . . . . Self-Inflicted Damage . | . . . . . . Shots . | . . . . . . Rammed . | . . . . . . Targets Rammed . | . . . . . . Kicked . | . . . . . . Crushed . | . . . . . . Highest Temperature 215 | . . 175 215 209 184 Average Temperature 56 | . . 37 49 111 96 Received Heat Transfer 321 | . 9 138 147 . 27 Siege Activations . | . . . . . . Robots Corrupted . | . . . . . . Combat Hostiles . | . . . . . . Parts Fried . | . . . . . . Impact Corruptions . | . . . . . . Robots Melted . | . . . . . . Combat Hostiles . | . . . . . . Parts Melted 2 | . . . 2 . . Heat Transferred 1196 | . . 500 696 . . Parts Sabotaged . | . . . . . . Parts Stolen . | . . . . . . Parts Stripped . | . . . . . . Power Chain Reactions . | . . . . . . Alert | -11 -10 -9 -9 -9 -8 ------- Run | Yrd Mat Mat Min Exi Min Peak Influence 365 | 5 17 365 206 . 51 Initial 64 | . 3 7 64 . . Average 57 | . 12 160 56 . . Maximum Alert Level 1 | . . 1 1 . . Low Security (%) 88 | 100 100 73 87 . 100 Level 1 11 | . . 26 12 . . Level 2 . | . . . . . . Level 3 . | . . . . . . Level 4 . | . . . . . . Level 5 . | . . . . . . High Security . | . . . . . . Max Security . | . . . . . . Squads Dispatched 1 | . . 1 . . . Investigation . | . . . . . . Extermination . | . . . . . . Reinforcement 1 | . . 1 . . . Assault . | . . . . . . Garrison . | . . . . . . Intercept . | . . . . . . Searches Triggered . | . . . . . . Construction Impeded . | . . . . . . Haulers Reinforced . | . . . . . . Active Scanning Responses . | . . . . . . Cargo Convoy Interrupts . | . . . . . . Stealth | -11 -10 -9 -9 -9 -8 --------- Run | Yrd Mat Mat Min Exi Min Distress Signals . | . . . . . . Communications Jammed . | . . . . . . Distress Signals . | . . . . . . Times Spotted 28 | . 2 12 11 . 3 Peak Tracking Total 4 | . 2 4 3 . 3 Tactical Retreats 1 | . . 1 . . . Traps | -11 -10 -9 -9 -9 -8 ------- Run | Yrd Mat Mat Min Exi Min Traps Triggered 1 | . . 1 . . . Indirectly . | . . . . . . Trap Hack Attempts . | . . . . . . Triggered . | . . . . . . Disarmed . | . . . . . . Reprogrammed . | . . . . . . Reused . | . . . . . . Traps Extracted . | . . . . . . Installed . | . . . . . . Triggered . | . . . . . . Machines | -11 -10 -9 -9 -9 -8 ---------- Run | Yrd Mat Mat Min Exi Min Machines Disabled 1 | . . . 1 . . Max in Single Turn 1 | . . . 1 . . Machines Repaired . | . . . . . . Machines Dismantled . | . . . . . . Machines Sabotaged . | . . . . . . Overloaded Fab Kills . | . . . . . . Hacking | -11 -10 -9 -9 -9 -8 --------- Run | Yrd Mat Mat Min Exi Min Machines Accessed 9 | . 2 4 . 3 . Terminals 4 | . 2 2 . . . Fabricators . | . . . . . . Repair Stations 2 | . . 2 . . . Recycling Units . | . . . . . . Scanalyzers . | . . . . . . Garrison Access . | . . . . . . Total Hacks 48 | . 7 8 . 33 . Successful 41 | . 3 5 . 33 . Failed 7 | . 4 3 . . . Catastrophic 1 | . . 1 . . . Database Lockouts . | . . . . . . Manual 1 | . . . . 1 . Terminals 11 | . 7 4 . . . Fabricators . | . . . . . . Repair Stations 4 | . . 4 . . . Recycling Units . | . . . . . . Scanalyzers . | . . . . . . Garrison Access . | . . . . . . Terminal Hacks 38 | . 3 2 . 33 . Record 33 | . 1 . . 32 . Prototype ID Bank 2 | . 2 . . . . Branch Access Points 1 | . . 1 . . . Emergency Access Points 1 | . . 1 . . . Derelict Proto ID Bank 1 | . . . . 1 . Fabricator Hacks . | . . . . . . Repair Station Hacks 3 | . . 3 . . . Scan Component 2 | . . 2 . . . Repair 1 | . . 1 . . . Recycling Unit Hacks . | . . . . . . Scanalyzer . | . . . . . . Garrison Access Hacks . | . . . . . . Unauthorized Hacks . | . . . . . . Terminals . | . . . . . . Fabricators . | . . . . . . Repair Stations . | . . . . . . Recycling Units . | . . . . . . Scanalyzers . | . . . . . . Garrison Access . | . . . . . . Data Cores Recovered . | . . . . . . Used . | . . . . . . Hacking Detections 5 | . 2 3 . . . Full Trace Events . | . . . . . . Feedback Events . | . . . . . . Feedback Blocked . | . . . . . . Robot Schematics Acquired . | . . . . . . Robots Built . | . . . . . . Authchips . | . . . . . . Time . | . . . . . . Total Robot Build Rating . | . . . . . . Part Schematics Acquired . | . . . . . . Parts Built . | . . . . . . Authchips . | . . . . . . Time . | . . . . . . Total Part Build Rating . | . . . . . . Parts Repaired 1 | . . 1 . . . Time 32 | . . 32 . . . Parts Recycled . | . . . . . . Recycled Matter . | . . . . . . Retrieved Matter . | . . . . . . Retrieved Components . | . . . . . . Parts Scanalyzed . | . . . . . . Part Schematics Acquired . | . . . . . . Parts Damaged . | . . . . . . Bothacking | -11 -10 -9 -9 -9 -8 ------------ Run | Yrd Mat Mat Min Exi Min Used RIF Installer . | . . . . . . Robots Hacked . | . . . . . . Non-combat . | . . . . . . Combat . | . . . . . . Robot Hacks Applied . | . . . . . . Relay Couplers Released . | . . . . . . Fabnet Peak Effective % . | . . . . . . Robots Rewired . | . . . . . . Allies Hacked . | . . . . . . Hacks Repelled . | . . . . . . Allies | -11 -10 -9 -9 -9 -8 -------- Run | Yrd Mat Mat Min Exi Min Total Allies 3 | . . . 3 . . Largest Group 2 | . . . 2 . . Highest-Rated Group 49 | . . . 49 . . Highest-Rated Ally 31 | . . . 31 . . Total Orders . | . . . . . . Ally Attacks 7 | . . . 7 . . Total Damage 103 | . . . 103 . . Kills 2 | . . . 2 . . Allies Corrupted . | . . . . . . Allies Melted 1 | . . . 1 . . Intel | -11 -10 -9 -9 -9 -8 ------- Run | Yrd Mat Mat Min Exi Min Robot Analysis Total . | . . . . . . Derelict Logs Recovered 3 | . . . 3 . . Drone Launches . | . . . . . . Drone Recoveries . | . . . . . . Exploration | -11 -10 -9 -9 -9 -8 ------------- Run | Yrd Mat Mat Min Exi Min Turns Passed 4000 | 79 82 501 1839 744 755 Spaces Moved 1892 | 68 89 310 831 310 284 Core 10 | 10 . . . . . Treads 1456 | . . 31 831 310 284 Legs . | . . . . . . Wheels 426 | 58 89 279 . . . Hover . | . . . . . . Flight . | . . . . . . Fastest Speed 50 | 50 90 80 160 240 240 Average Speed 191 | 83 90 105 208 240 242 Slowest Speed 245 | 90 90 160 240 240 245 Overloaded Moves . | . . . . . . Propulsion Burnouts . | . . . . . . Robots Hopped . | . . . . . . Cave-ins Triggered 1 | . . 1 . . . Exploration Rate (%) 48 | 4 16 31 94 72 75 Regions Visited 5 Branch Regions 3 Pre-discovered Areas 3 | . . . 2 1 . Known Exits Taken 1 | . . 1 . . . Unknown Exits Taken 4 | 1 1 . 1 1 . Scrap Searched 3 | . . . 2 . 1 Spaces Dug 4 | . . . . . 4 Terrain Destroyed 4 | . . . . . 4 Melee 4 | . . . . . 4 Projectile . | . . . . . . AOE . | . . . . . . Terrain Rammed . | . . . . . . Walls Destroyed . | . . . . . . Machines Disabled . | . . . . . . Actions | -11 -10 -9 -9 -9 -8 --------- Run | Yrd Mat Mat Min Exi Min Total 2169 | 86 90 436 907 311 339 Wait 126 | . . 42 44 . 40 Move 1886 | 67 88 308 830 309 284 Hop . | . . . . . . Pick Up 45 | 11 1 21 10 1 1 Fast Attach . | . . . . . . Attach 19 | 6 . 10 3 . . Detach 1 | . . 1 . . . Swap 23 | . 1 19 . . 3 Drop 13 | . . 7 4 1 1 Fire 45 | 2 . 27 16 . . Melee 10 | . . . . . 10 Ram . | . . . . . . Kick . | . . . . . . Crush . | . . . . . . Escape Stasis 1 | . . 1 . . . Rewire . | . . . . . . Trap . | . . . . . . Miscellaneous . | . . . . . . Route ------- -11/Scrapyard -10/Materials -9/Materials (discovered 4 exits: [*Mat] / *Min / Sto x2) -9/Mines (discovered 3 exits: [*Mat x2] / *Exi) -9/Exiles -8/Mines History --------- Turn | Location | Event 20 | -11/Scrapyard | Discovered new exit (range 16) 80 | -11/Scrapyard | Entered Materials 149 | -10/Materials | Discovered new exit (range 16) 162 | -10/Materials | Entered another Materials area 162 | -9/Materials | Evolved 2 slots: Utility x2 275 | -9/Materials | Identified exit to Mines 275 | -9/Materials | Identified exit to Storage 304 | -9/Materials | Build established: Mutant 365 | -9/Materials | Discovered new exit (range 8) 485 | -9/Materials | Crushed by falling debris 486 | -9/Materials | Core integrity fell below 50% 515 | -9/Materials | Core integrity fell below 20% 516 | -9/Materials | Lost 3 parts (1p1n1w) 537 | -9/Materials | Repaired Spread Laser 663 | -9/Materials | Entered Mines 733 | -9/Mines | Learned location of Storage (-9) 983 | -9/Mines | Learned 2 Materials zone layouts 1090 | -9/Mines | Deemed a non-threat by the Exiles lab entrance 1090 | -9/Mines | Discovered new exit (range 5) 1302 | -9/Mines | Received a Mining Laser from a helpful Derelict 1943 | -9/Mines | Discovered new exit (range 10) 2240 | -9/Mines | Discovered new exit (range 6) 2502 | -9/Mines | Entered Exiles 2565 | -9/Exiles | Met 8R-AWN 2603 | -9/Exiles | Met EX-HEX 2716 | -9/Exiles | Met EX-DEC 2790 | -9/Exiles | Learned location of Zion (-6) 2850 | -9/Exiles | Met EX-BIN 2886 | -9/Exiles | Aligned with FarCom system 2889 | -9/Exiles | Given EX-Vault access code 2973 | -9/Exiles | Opened EX-Vault 2990 | -9/Exiles | Found Longsword +1 3037 | -9/Exiles | Warned to stay clear of 0b10 Research branches 3212 | -9/Exiles | Discovered new exit (range 14) 3246 | -9/Exiles | Left Exiles lab with Longsword +1 3246 | -9/Exiles | Entered Mines 4001 | -8/Mines | Destroyed by G-47 Trooper with Particle Gun Last Messages --------------- Dropped Lgt. Treads. Acquired Arm. Treads. K-01 Serf collects debris. R-06 Scavenger collects Lgt. Treads. K-01 Serf collects debris. WWOTMU=R7CI8RELICQ1EXK9,AP9#V=SFL:P& YCKL#V>5XAL:B,BLDKE|B ZZK#NX,GK T-07 Excavator is excavating. System corrupted: Matter fused (-9). T-07 Excavator is excavating. System corrupted: FCS attempts to trigger Spread Laser. System corrupted: Spread Laser misfires. VEZ971AL47P LQQ A6WGZV0CN System corrupted: Heat flow error (+223). System corrupted: IFF burst signal emitted. G-47 Trooper destroyed. System corrupted: Matter fused (-9). B-36 Bruiser Lgt. Treads severed. B-36 Bruiser destroyed. Map ----- +----------------------------------------------------+ | ?????????????????????????????????????????????????? | | ????????????????????????????????????????????####?? | | ???????????????????????????????????????###?## ##? | | ??????????????????????????????????????## ## #? | | ??????????????????????????????????????# #? | | ?????????????????????????????????????## """ #? | | ?????????????????????????????????????# """ ## | | ?????????????????????????????????????# """ #? | | ??????????????????????????????????????# ## | | ??????????????????????????????????????## # | | ???????????????????????"""?????????????## | | ??????????????????g????"""???############ | | ???????????????????????"""???# | | ??????????????????????? ???# ########## | | ???????????????????gg?? ???# #????????# | | ???????????????????????# #???# #?###????## | | ???????????????????????# #???# ### ##????### | | ???????????????????????# #???# ## #??????## | | ???????????????????????# #???# ## #???????###### | | ?????????????########### ##### ## ##???????????? | | ?????????????# ##??????????? | | ?????????????# ##?????????? | | ?????? ####### ########### #?????????? | | ?????????????????????# ###?????## """ #????????## | | ?????????????????????# #g##????# """ #??????## | | ?????????????????????# "#@#????# """ #??????# | | ?????????????????????# #=##????## #?????## | | ?????????????????????# ###??????### ##???## | | ?????????????????????# #??????????### ##?## | | ?????????????g???????# #????????????## ### | | ????????????????g????# #?????????????# | | ?????????????????????# #?????#???????## | | ??????????????g??????# #???? #???????## ### | | ????????????????????## ### ##??????####?## | | ???????????????????## ? ###??????????# # | | ??????????????????## ? ##????????## # | | ???????????????? ## ?? #????????# # | | ???????????????? ?? #????????# # | | ????????????????? #??# ??#####??## # | | ??????????????????# #### #??# #???## # | | ???????????????????# ## #?? #????# # | | #?????????????????## #?? #????# # | | ??????????????### #??# #????# # | | ? ?????????????## #### #????# | | ? ???????????## ## ######### | | ?? ????????#### #??? | | ??? ??????# ##### #??? | | ??? ####?????# ## ## #???# #??? | | ???? #??????# #### ###### #??## #??? | | ????# #??????## ## #??####????# #?## ##?? | +----------------------------------------------------+ Best States ------------- Heat Dissipation 50 Energy Generation 14 Energy Capacity 280 Matter Stores 300 Matter Capacity 300 Sight Range 16 Terrain Scan Density 10 Armor Coverage 225 Evasion (%) 50 Targeting Accuracy 6 Recoil Reduction 2 Item Schematics ----------------- None Robot Schematics ------------------ None Fabricated ------------ Nothing Alien Tech Used ----------------- None Achievements -------------- None Challenges ------------ None Game ------ Seed ImpulseCoolingMinigun Manual? 0 Play Time 00:25:54 Cumulative 31.2 hours Start 2024.04.23 @ 17:01:29 End 2024.04.23 @ 17:41:16 Sessions 1 Manual Loads 0 Difficulty Rogue Special Mode None Game No. 45 Rogue 44 Adventurer 1 Explorer 0 Win Type - Total 0 Types 0/0/0/0/0/0/0/0/0 Lore% 28 Gallery% 35 Achievement% 27 Wizard Run 0 Options --------- Layout 1 ASCII 0 Keyboard 0 Movement Mouse Keybinds 0 Fullscreen 1 Font 24/Smallcaps Map View 50x40 Zoom Use 0% Tactical HUD 0 Map Filters NONE Filters NONE Steam 1 RUN: e8a165a2-3cae-4961-9088-eed1a5c64fb1